[Event "*** SCC Grand Prix: Titled Tuesday Blitz"]
[Site "Chess.com"]
[Date "2020.06.09"]
[Round "8"]
[White "ajian"]
[Black "gui_borba"]
[Result "0-1"]
[WhiteElo "2434"]
[BlackElo "2360"]
[TimeControl "180+1"]
[EndTime "10:35:50 PDT"]
[Termination "gui_borba won by resignation"]

1. d4 {[%clk 0:02:59.8]} 1... Nf6 {[%clk 0:02:59.8]} 2. c4 {[%clk 0:02:59.4]}
2... e6 {[%clk 0:03:00.4]} 3. Nc3 {[%clk 0:02:59.4]} 3... Bb4 {[%clk 0:03:00.5]}
4. Qc2 {[%clk 0:02:59.2]} 4... d5 {[%clk 0:02:59.2]} 5. cxd5 {[%clk 0:02:58.5]}
5... exd5 {[%clk 0:02:59]} 6. Bg5 {[%clk 0:02:58.3]} 6... h6 {[%clk 0:02:59.5]}
7. Bh4 {[%clk 0:02:58.4]} 7... c5 {[%clk 0:02:58.4]} 8. dxc5 {[%clk 0:02:59.3]}
8... g5 {[%clk 0:02:57.9]} 9. Bg3 {[%clk 0:02:59.2]} 9... Ne4 {[%clk 0:02:58.6]}
10. e3 {[%clk 0:02:59.2]} 10... Nc6 {[%clk 0:02:57]} 11. Bd3 {[%clk 0:02:57.1]}
11... Nxc5 {[%clk 0:02:43.5]} 12. Ne2 {[%clk 0:02:50.3]} 12... d4 {[%clk
0:02:39.7]} 13. exd4 {[%clk 0:02:35]} 13... Nxd4 {[%clk 0:02:40.6]} 14. Nxd4
{[%clk 0:02:28.9]} 14... Qxd4 {[%clk 0:02:41.5]} 15. Bb5+ {[%clk 0:02:28.7]}
15... Kf8 {[%clk 0:02:35.5]} 16. Rd1 {[%clk 0:02:14]} 16... Qe4+ {[%clk
0:01:58.6]} 17. Qxe4 {[%clk 0:01:52.3]} 17... Nxe4 {[%clk 0:01:59.5]} 18. Be5
{[%clk 0:01:04]} 18... f6 {[%clk 0:01:59.3]} 19. O-O {[%clk 0:00:52.8]} 19...
Bxc3 {[%clk 0:01:45.8]} 20. Bxc3 {[%clk 0:00:42.6]} 20... Nxc3 {[%clk
0:01:45.9]} 21. bxc3 {[%clk 0:00:38.4]} 21... Be6 {[%clk 0:01:46]} 22. Rd6
{[%clk 0:00:28.3]} 22... Ke7 {[%clk 0:01:46]} 23. Rfd1 {[%clk 0:00:26.4]} 23...
Rhd8 {[%clk 0:01:45.6]} 24. Rxd8 {[%clk 0:00:23]} 24... Rxd8 {[%clk 0:01:46.5]}
25. Rxd8 {[%clk 0:00:23.3]} 25... Kxd8 {[%clk 0:01:47.4]} 26. a3 {[%clk
0:00:22.6]} 26... Kc7 {[%clk 0:01:46.4]} 27. f3 {[%clk 0:00:17.4]} 27... Kb6
{[%clk 0:01:46.8]} 28. Be8 {[%clk 0:00:13.9]} 28... Kc5 {[%clk 0:01:45.8]} 29.
Kf2 {[%clk 0:00:03.4]} 29... Kc4 {[%clk 0:01:46.2]} 30. a4 {[%clk 0:00:03.2]}
30... Kxc3 {[%clk 0:01:46.4]} 31. Ke3 {[%clk 0:00:03.2]} 31... Bd5 {[%clk
0:01:33.4]} 32. a5 {[%clk 0:00:02.4]} 32... Kb4 {[%clk 0:01:25.1]} 33. Kd4
{[%clk 0:00:02.7]} 33... Bc6 {[%clk 0:01:25.3]} 34. a6 {[%clk 0:00:01.7]} 34...
Ka5 {[%clk 0:01:11.9]} 35. axb7 {[%clk 0:00:01.8]} 35... Bxb7 {[%clk 0:01:12.8]}
36. Kc5 {[%clk 0:00:02.1]} 36... Ba6 {[%clk 0:01:06.1]} 37. Kd6 {[%clk
0:00:02.2]} 37... Bf1 {[%clk 0:01:04.7]} 38. g3 {[%clk 0:00:02.6]} 38... Kb4
{[%clk 0:01:03.6]} 39. f4 {[%clk 0:00:03.1]} 39... a5 {[%clk 0:01:03.3]} 40. Ke6
{[%clk 0:00:03.2]} 40... Bb5 {[%clk 0:01:01]} 41. Bf7 {[%clk 0:00:03]} 41...
Bc4+ {[%clk 0:00:58.8]} 42. Kxf6 {[%clk 0:00:03.5]} 42... Bxf7 {[%clk
0:00:59.7]} 43. Kxf7 {[%clk 0:00:04.4]} 43... gxf4 {[%clk 0:01:00.1]} 44. gxf4
{[%clk 0:00:04.6]} 44... a4 {[%clk 0:01:01]} 45. f5 {[%clk 0:00:05.5]} 45... a3
{[%clk 0:01:01.9]} 46. f6 {[%clk 0:00:06.3]} 46... a2 {[%clk 0:01:02.8]} 47. Kg8
{[%clk 0:00:06.8]} 47... a1=Q {[%clk 0:01:03.7]} 48. f7 {[%clk 0:00:07.4]} 48...
Qg1+ {[%clk 0:01:01.3]} 49. Kh8 {[%clk 0:00:06.7]} 49... Qf2 {[%clk 0:01:00.9]}
50. Kg8 {[%clk 0:00:07]} 50... Qg2+ {[%clk 0:01:00.9]} 51. Kh8 {[%clk
0:00:06.4]} 51... Qf3 {[%clk 0:01:01.1]} 52. Kg8 {[%clk 0:00:06.8]} 52... Qg4+
{[%clk 0:01:01.3]} 53. Kh8 {[%clk 0:00:06.8]} 53... Qf5 {[%clk 0:01:01.2]} 54.
Kg8 {[%clk 0:00:06.9]} 54... Qg6+ {[%clk 0:01:00.6]} 55. Kf8 {[%clk 0:00:07.4]}
55... Kc5 {[%clk 0:00:59.7]} 56. h4 {[%clk 0:00:06.8]} 56... Kd6 {[%clk
0:00:53.3]} 57. h5 {[%clk 0:00:03.8]} 57... Qxh5 {[%clk 0:00:51.8]} 58. Kg7
{[%clk 0:00:03.9]} 58... Qxf7+ {[%clk 0:00:52.7]} 59. Kxf7 {[%clk 0:00:04.1]}
59... h5 {[%clk 0:00:53.6]} 0-1

[Event "*** SCC Grand Prix: Titled Tuesday Blitz"]
[Site "Chess.com"]
[Date "2020.06.09"]
[Round "8"]
[White "VincentKeymer"]
[Black "GOGIEFF"]
[Result "0-1"]
[WhiteElo "2768"]
[BlackElo "2915"]
[TimeControl "180+1"]
[EndTime "10:35:51 PDT"]
[Termination "GOGIEFF won by checkmate"]

1. Nf3 {[%clk 0:03:00.9]} 1... Nf6 {[%clk 0:02:59]} 2. c4 {[%clk 0:03:00.8]}
2... g6 {[%clk 0:02:59]} 3. Nc3 {[%clk 0:02:59.4]} 3... Bg7 {[%clk 0:02:59.5]}
4. g3 {[%clk 0:03:00]} 4... O-O {[%clk 0:02:58.7]} 5. Bg2 {[%clk 0:03:00.6]}
5... Nc6 {[%clk 0:02:59.4]} 6. O-O {[%clk 0:02:56.3]} 6... a6 {[%clk 0:02:59.8]}
7. d4 {[%clk 0:02:55.7]} 7... Rb8 {[%clk 0:02:59.7]} 8. b3 {[%clk 0:02:37.9]}
8... b5 {[%clk 0:02:57.1]} 9. Qd3 {[%clk 0:02:30.3]} 9... d6 {[%clk 0:02:50.4]}
10. Bg5 {[%clk 0:02:14.1]} 10... h6 {[%clk 0:02:37.4]} 11. Bxf6 {[%clk
0:02:13.3]} 11... Bxf6 {[%clk 0:02:33.9]} 12. e3 {[%clk 0:02:13.7]} 12... Bg7
{[%clk 0:02:22.9]} 13. Nd2 {[%clk 0:02:04.4]} 13... Nb4 {[%clk 0:02:13.7]} 14.
Qe2 {[%clk 0:02:01.2]} 14... c5 {[%clk 0:02:07.5]} 15. Nf3 {[%clk 0:01:47.1]}
15... bxc4 {[%clk 0:01:56.5]} 16. bxc4 {[%clk 0:01:43.5]} 16... Bg4 {[%clk
0:01:54.2]} 17. Rfd1 {[%clk 0:01:34.4]} 17... Nc6 {[%clk 0:01:51.1]} 18. d5
{[%clk 0:01:05.4]} 18... Bxc3 {[%clk 0:01:41.8]} 19. Rac1 {[%clk 0:01:05.4]}
19... Rb2 {[%clk 0:01:28]} 20. Qd3 {[%clk 0:00:52.2]} 20... Ne5 {[%clk
0:01:18.5]} 21. Qxc3 {[%clk 0:00:49.7]} 21... Nxf3+ {[%clk 0:01:18.5]} 22. Bxf3
{[%clk 0:00:46.7]} 22... Bxf3 {[%clk 0:01:19.4]} 23. Qxb2 {[%clk 0:00:46.8]}
23... Qd7 {[%clk 0:01:17.3]} 24. Kf1 {[%clk 0:00:39]} 24... Qh3+ {[%clk
0:01:16.3]} 25. Ke1 {[%clk 0:00:39.3]} 25... Qxh2 {[%clk 0:01:15.3]} 26. Rd3
{[%clk 0:00:37.1]} 26... Qg1+ {[%clk 0:01:10.5]} 27. Kd2 {[%clk 0:00:37]} 27...
Qxf2+ {[%clk 0:01:10.9]} 28. Kc3 {[%clk 0:00:37.5]} 28... Qxg3 {[%clk
0:01:10.2]} 29. Qb7 {[%clk 0:00:21.3]} 29... Be4 {[%clk 0:01:04.7]} 30. Qxe7
{[%clk 0:00:20.6]} 30... Bxd3 {[%clk 0:01:04.8]} 31. Kxd3 {[%clk 0:00:21.5]}
31... h5 {[%clk 0:01:02.4]} 32. Rf1 {[%clk 0:00:20.6]} 32... h4 {[%clk
0:00:58.5]} 33. Rh1 {[%clk 0:00:19.9]} 33... h3 {[%clk 0:00:52.2]} 34. Qd7
{[%clk 0:00:20.2]} 34... h2 {[%clk 0:00:51.1]} 35. Qe7 {[%clk 0:00:17.7]} 35...
Qg2 {[%clk 0:00:48.8]} 36. Qe4 {[%clk 0:00:17.4]} 36... Qxa2 {[%clk 0:00:42.8]}
37. Qh4 {[%clk 0:00:16.9]} 37... Re8 {[%clk 0:00:34.8]} 38. Rxh2 {[%clk
0:00:12.4]} 38... Qb3+ {[%clk 0:00:34.9]} 39. Kd2 {[%clk 0:00:11.8]} 39... Qxe3+
{[%clk 0:00:35.3]} 40. Kd1 {[%clk 0:00:10]} 40... Qd3+ {[%clk 0:00:31.7]} 41.
Kc1 {[%clk 0:00:09.7]} 41... Qc3+ {[%clk 0:00:29.4]} 42. Kd1 {[%clk 0:00:10]}
42... Qg7 {[%clk 0:00:25.4]} 43. Kc2 {[%clk 0:00:07.9]} 43... Rb8 {[%clk
0:00:24.1]} 44. Kd3 {[%clk 0:00:04.8]} 44... a5 {[%clk 0:00:22.4]} 45. Ra2
{[%clk 0:00:04]} 45... Rb3+ {[%clk 0:00:22.2]} 46. Ke4 {[%clk 0:00:04.2]} 46...
Qd4# {[%clk 0:00:21.8]} 0-1

[Event "*** SCC Grand Prix: Titled Tuesday Blitz"]
[Site "Chess.com"]
[Date "2020.06.09"]
[Round "8"]
[White "WiktoriaPOL"]
[Black "Ural_bogatyr"]
[Result "0-1"]
[WhiteElo "2045"]
[BlackElo "2296"]
[TimeControl "180+1"]
[EndTime "10:35:51 PDT"]
[Termination "Ural_bogatyr won on time"]

1. c4 {[%clk 0:03:00.9]} 1... Nf6 {[%clk 0:02:55.3]} 2. Nc3 {[%clk 0:03:00.3]}
2... e6 {[%clk 0:02:53.2]} 3. e4 {[%clk 0:02:59.9]} 3... d5 {[%clk 0:02:52.8]}
4. e5 {[%clk 0:02:58.7]} 4... Ne4 {[%clk 0:02:52.6]} 5. Nxe4 {[%clk 0:02:56.9]}
5... dxe4 {[%clk 0:02:53.5]} 6. d4 {[%clk 0:02:37.1]} 6... exd3 {[%clk 0:02:52]}
7. Qxd3 {[%clk 0:02:36.9]} 7... Qxd3 {[%clk 0:02:50.6]} 8. Bxd3 {[%clk
0:02:37.8]} 8... Nc6 {[%clk 0:02:50.9]} 9. f4 {[%clk 0:02:37.2]} 9... Bb4+
{[%clk 0:02:49.1]} 10. Bd2 {[%clk 0:02:36.3]} 10... Bd7 {[%clk 0:02:48.1]} 11.
a3 {[%clk 0:02:35.1]} 11... Bxd2+ {[%clk 0:02:47.6]} 12. Kxd2 {[%clk 0:02:35.1]}
12... O-O-O {[%clk 0:02:47.1]} 13. Kc3 {[%clk 0:02:33.2]} 13... Ne7 {[%clk
0:02:45.1]} 14. Nf3 {[%clk 0:02:32]} 14... Bc6 {[%clk 0:02:44.4]} 15. b4 {[%clk
0:02:21.6]} 15... Nf5 {[%clk 0:02:40.2]} 16. Bxf5 {[%clk 0:02:14.3]} 16... exf5
{[%clk 0:02:39.9]} 17. Nd4 {[%clk 0:02:07.3]} 17... Be4 {[%clk 0:02:39.7]} 18.
Rhe1 {[%clk 0:01:57.8]} 18... g6 {[%clk 0:02:35.6]} 19. g3 {[%clk 0:01:50.6]}
19... c6 {[%clk 0:02:34.3]} 20. Rad1 {[%clk 0:01:50.1]} 20... Kc7 {[%clk
0:02:33.5]} 21. Nb3 {[%clk 0:01:46.3]} 21... b6 {[%clk 0:02:28.2]} 22. c5 {[%clk
0:01:39.7]} 22... Bf3 {[%clk 0:02:18.5]} 23. Rd6 {[%clk 0:01:37.7]} 23... Bd5
{[%clk 0:02:14.3]} 24. Nd4 {[%clk 0:01:26.7]} 24... h5 {[%clk 0:02:09.9]} 25. h4
{[%clk 0:01:25.5]} 25... Rhe8 {[%clk 0:02:05.9]} 26. Rf6 {[%clk 0:01:23.2]}
26... Re7 {[%clk 0:01:58.8]} 27. Rd1 {[%clk 0:01:12]} 27... Ra8 {[%clk
0:01:56.5]} 28. cxb6+ {[%clk 0:00:59.7]} 28... axb6 {[%clk 0:01:53.5]} 29. Kb2
{[%clk 0:00:59.6]} 29... Kb7 {[%clk 0:01:48.7]} 30. Rc1 {[%clk 0:00:58.7]} 30...
Rc8 {[%clk 0:01:43.3]} 31. Rd1 {[%clk 0:00:47.7]} 31... Rec7 {[%clk 0:01:34]}
32. Rd6 {[%clk 0:00:43.5]} 32... Ra8 {[%clk 0:01:15.7]} 33. e6 {[%clk
0:00:33.7]} 33... fxe6 {[%clk 0:01:14.4]} 34. Nxe6 {[%clk 0:00:33.6]} 34... Re7
{[%clk 0:01:12.2]} 35. Nd4 {[%clk 0:00:21.3]} 35... Re3 {[%clk 0:01:07.9]} 36.
Rxg6 {[%clk 0:00:20.1]} 36... Raxa3 {[%clk 0:01:02.5]} 37. Nc2 {[%clk
0:00:14.6]} 37... Rab3+ {[%clk 0:00:58.4]} 38. Kc1 {[%clk 0:00:14.4]} 38... Rxg3
{[%clk 0:00:56.7]} 39. Rxg3 {[%clk 0:00:13]} 39... Rxg3 {[%clk 0:00:57.6]} 40.
Nd4 {[%clk 0:00:13]} 40... Rg4 {[%clk 0:00:54.4]} 41. Nxf5 {[%clk 0:00:12.8]}
41... Rxf4 {[%clk 0:00:54.1]} 42. Ng7 {[%clk 0:00:06.7]} 42... Rxh4 {[%clk
0:00:52.8]} 43. b5 {[%clk 0:00:06.5]} 43... Rc4+ {[%clk 0:00:51.9]} 44. Kb1
{[%clk 0:00:03.8]} 44... h4 {[%clk 0:00:50]} 45. bxc6+ {[%clk 0:00:03]} 45...
Bxc6 {[%clk 0:00:50.9]} 46. Nf5 {[%clk 0:00:02.1]} 46... Rb4+ {[%clk 0:00:48.6]}
47. Ka1 {[%clk 0:00:01.5]} 47... h3 {[%clk 0:00:48.8]} 48. Nd6+ {[%clk
0:00:01.1]} 48... Kc7 {[%clk 0:00:46.5]} 49. Nf5 {[%clk 0:00:01.3]} 49... h2
{[%clk 0:00:45.4]} 50. Ng3 {[%clk 0:00:01.5]} 50... Rg4 {[%clk 0:00:43.1]} 51.
Nh1 {[%clk 0:00:01.4]} 51... Bxh1 {[%clk 0:00:41.9]} 52. Rxh1 {[%clk 0:00:01.3]}
52... Rg1+ {[%clk 0:00:42.8]} 0-1

[Event "*** SCC Grand Prix: Titled Tuesday Blitz"]
[Site "Chess.com"]
[Date "2020.06.09"]
[Round "8"]
[White "AnishGiri"]
[Black "dretch"]
[Result "1-0"]
[WhiteElo "2977"]
[BlackElo "2817"]
[TimeControl "180+1"]
[EndTime "10:35:55 PDT"]
[Termination "AnishGiri won by checkmate"]

1. e4 {[%clk 0:03:00.9]} 1... e6 {[%clk 0:02:51.4]} 2. d4 {[%clk 0:02:58.5]}
2... d5 {[%clk 0:02:51.7]} 3. Nc3 {[%clk 0:02:58.9]} 3... Nf6 {[%clk 0:02:51.7]}
4. e5 {[%clk 0:02:58.9]} 4... Nfd7 {[%clk 0:02:52.1]} 5. f4 {[%clk 0:02:59.5]}
5... c5 {[%clk 0:02:52.6]} 6. Nf3 {[%clk 0:03:00]} 6... Nc6 {[%clk 0:02:51.3]}
7. Be3 {[%clk 0:03:00.4]} 7... cxd4 {[%clk 0:02:47.8]} 8. Nxd4 {[%clk
0:03:00.5]} 8... Bc5 {[%clk 0:02:48.1]} 9. Qd2 {[%clk 0:02:59.8]} 9... O-O
{[%clk 0:02:48.2]} 10. O-O-O {[%clk 0:02:58.8]} 10... a6 {[%clk 0:02:47.3]} 11.
Qf2 {[%clk 0:02:55.9]} 11... Bxd4 {[%clk 0:02:47.1]} 12. Bxd4 {[%clk 0:02:56.8]}
12... b5 {[%clk 0:02:47.6]} 13. Be3 {[%clk 0:02:42.4]} 13... Qa5 {[%clk
0:02:46.7]} 14. Kb1 {[%clk 0:02:41]} 14... b4 {[%clk 0:02:46.5]} 15. Ne2 {[%clk
0:02:41.7]} 15... Qc7 {[%clk 0:02:45.6]} 16. Nd4 {[%clk 0:02:42.2]} 16... Nxd4
{[%clk 0:02:44.8]} 17. Bxd4 {[%clk 0:02:42.1]} 17... a5 {[%clk 0:02:40.9]} 18.
Bb5 {[%clk 0:02:42]} 18... Ba6 {[%clk 0:02:34]} 19. Bxd7 {[%clk 0:02:41.8]}
19... Qxd7 {[%clk 0:02:34]} 20. b3 {[%clk 0:02:34.4]} 20... a4 {[%clk
0:02:33.2]} 21. Rd2 {[%clk 0:02:34.1]} 21... Rfc8 {[%clk 0:02:27.3]} 22. h4
{[%clk 0:02:22]} 22... axb3 {[%clk 0:02:20.1]} 23. cxb3 {[%clk 0:02:16.5]} 23...
Rc3 {[%clk 0:02:18.5]} 24. Bxc3 {[%clk 0:01:54.5]} 24... bxc3 {[%clk 0:02:18.2]}
25. Rd4 {[%clk 0:01:55.4]} 25... Qa7 {[%clk 0:02:10]} 26. Rhd1 {[%clk
0:01:51.1]} 26... Bc4 {[%clk 0:02:02.7]} 27. bxc4 {[%clk 0:01:21.1]} 27... Rb8+
{[%clk 0:01:58.4]} 28. Ka1 {[%clk 0:01:21.4]} 28... Rb2 {[%clk 0:01:53.4]} 29.
Qxb2 {[%clk 0:01:21.3]} 29... cxb2+ {[%clk 0:01:54.3]} 30. Kb1 {[%clk 0:01:15]}
30... h5 {[%clk 0:01:50.3]} 31. cxd5 {[%clk 0:01:13.4]} 31... exd5 {[%clk
0:01:50.3]} 32. a4 {[%clk 0:01:04.6]} 32... Qd7 {[%clk 0:01:45.2]} 33. Kxb2
{[%clk 0:00:56.1]} 33... Qb7+ {[%clk 0:01:41.1]} 34. Ka2 {[%clk 0:00:56]} 34...
Qc6 {[%clk 0:01:38.5]} 35. Kb3 {[%clk 0:00:53]} 35... Qb6+ {[%clk 0:01:36.8]}
36. Ka2 {[%clk 0:00:52.6]} 36... Qc6 {[%clk 0:01:34.2]} 37. R1d2 {[%clk
0:00:52.4]} 37... g6 {[%clk 0:01:26]} 38. g3 {[%clk 0:00:42.8]} 38... Qc3 {[%clk
0:01:23.9]} 39. R2d3 {[%clk 0:00:42.9]} 39... Qc6 {[%clk 0:01:16.8]} 40. Kb3
{[%clk 0:00:40.7]} 40... Qb6+ {[%clk 0:01:13.7]} 41. Kc2 {[%clk 0:00:38.4]}
41... Qc7+ {[%clk 0:00:59.3]} 42. Kd2 {[%clk 0:00:37.8]} 42... Qc6 {[%clk
0:00:59.4]} 43. a5 {[%clk 0:00:36.2]} 43... Qc5 {[%clk 0:00:55]} 44. Rxd5 {[%clk
0:00:36.5]} 44... Qb4+ {[%clk 0:00:51.3]} 45. Ke2 {[%clk 0:00:35.7]} 45... Qb2+
{[%clk 0:00:37.3]} 46. Ke3 {[%clk 0:00:32.8]} 46... Qg2 {[%clk 0:00:34.4]} 47.
Kd4 {[%clk 0:00:30.2]} 47... Qc2 {[%clk 0:00:34.4]} 48. Ke3 {[%clk 0:00:09.4]}
48... Qa2 {[%clk 0:00:29.4]} 49. Kf3 {[%clk 0:00:08.2]} 49... Kf8 {[%clk
0:00:28]} 50. e6 {[%clk 0:00:07.9]} 50... fxe6 {[%clk 0:00:21]} 51. Rd8+ {[%clk
0:00:07.8]} 51... Ke7 {[%clk 0:00:20.4]} 52. R3d7+ {[%clk 0:00:08.7]} 52... Kf6
{[%clk 0:00:19.1]} 53. Rf8# {[%clk 0:00:09.5]} 1-0

[Event "*** SCC Grand Prix: Titled Tuesday Blitz"]
[Site "Chess.com"]
[Date "2020.06.09"]
[Round "8"]
[White "tylityli"]
[Black "DivyaDeshmukh23"]
[Result "0-1"]
[WhiteElo "2256"]
[BlackElo "2448"]
[TimeControl "180+1"]
[EndTime "10:35:57 PDT"]
[Termination "DivyaDeshmukh23 won by resignation"]

1. d4 {[%clk 0:02:51.8]} 1... Nf6 {[%clk 0:02:54.6]} 2. c4 {[%clk 0:02:51.3]}
2... e6 {[%clk 0:02:54]} 3. Nc3 {[%clk 0:02:51.4]} 3... Bb4 {[%clk 0:02:45.5]}
4. e3 {[%clk 0:02:51.3]} 4... O-O {[%clk 0:02:42.6]} 5. Ne2 {[%clk 0:02:52.2]}
5... c5 {[%clk 0:02:39.4]} 6. d5 {[%clk 0:02:51.3]} 6... exd5 {[%clk 0:02:35.7]}
7. cxd5 {[%clk 0:02:50.8]} 7... d6 {[%clk 0:02:36.1]} 8. g3 {[%clk 0:02:47.4]}
8... b5 {[%clk 0:02:34.7]} 9. Bg2 {[%clk 0:02:46]} 9... Bb7 {[%clk 0:02:34]} 10.
O-O {[%clk 0:02:45.1]} 10... Bxc3 {[%clk 0:02:34.4]} 11. bxc3 {[%clk 0:02:40.2]}
11... Nbd7 {[%clk 0:02:34.5]} 12. f4 {[%clk 0:02:32.4]} 12... Re8 {[%clk
0:02:32.9]} 13. Qc2 {[%clk 0:02:31]} 13... Qe7 {[%clk 0:02:32.4]} 14. Rd1 {[%clk
0:02:24.9]} 14... Nb6 {[%clk 0:02:31.5]} 15. Rb1 {[%clk 0:02:04.6]} 15... a6
{[%clk 0:02:11.4]} 16. a4 {[%clk 0:02:03]} 16... Nbxd5 {[%clk 0:02:04]} 17. Rxd5
{[%clk 0:01:26.2]} 17... Bxd5 {[%clk 0:01:59.8]} 18. axb5 {[%clk 0:01:22.3]}
18... axb5 {[%clk 0:01:52.8]} 19. Rxb5 {[%clk 0:01:21.5]} 19... Ra2 {[%clk
0:01:49]} 20. Rb2 {[%clk 0:01:17.5]} 20... Rxb2 {[%clk 0:01:47]} 21. Qxb2 {[%clk
0:01:18.4]} 21... Bxg2 {[%clk 0:01:45.6]} 22. Kxg2 {[%clk 0:01:18.2]} 22... Qe4+
{[%clk 0:01:46.1]} 23. Kg1 {[%clk 0:01:08.8]} 23... Ng4 {[%clk 0:01:34.1]} 24.
Qd2 {[%clk 0:00:52.9]} 24... Nxe3 {[%clk 0:01:32]} 25. Qxe3 {[%clk 0:00:52.7]}
25... Qxe3+ {[%clk 0:01:32.7]} 26. Bxe3 {[%clk 0:00:52.9]} 26... Rxe3 {[%clk
0:01:33.6]} 27. Kf2 {[%clk 0:00:53.2]} 27... Rd3 {[%clk 0:01:32.2]} 28. g4
{[%clk 0:00:50]} 28... Rd1 {[%clk 0:01:22.2]} 29. h4 {[%clk 0:00:49.4]} 29... f6
{[%clk 0:01:20.3]} 30. h5 {[%clk 0:00:49.5]} 30... Kf7 {[%clk 0:01:19.6]} 31.
Ke3 {[%clk 0:00:49.7]} 31... d5 {[%clk 0:01:19.2]} 32. Ng3 {[%clk 0:00:45.3]}
32... Rc1 {[%clk 0:00:46.7]} 33. Ne2 {[%clk 0:00:40.3]} 33... Rh1 {[%clk
0:00:40.8]} 34. Kf2 {[%clk 0:00:33.4]} 34... f5 {[%clk 0:00:30.1]} 35. Kg2
{[%clk 0:00:31.4]} 35... Rh4 {[%clk 0:00:28]} 36. gxf5 {[%clk 0:00:28.6]} 36...
Rxh5 {[%clk 0:00:27.8]} 37. Ng3 {[%clk 0:00:26.4]} 37... Rh4 {[%clk 0:00:28]}
38. Kf3 {[%clk 0:00:20.2]} 38... Rh3 {[%clk 0:00:28.3]} 39. Kg2 {[%clk
0:00:19.5]} 39... Rxg3+ {[%clk 0:00:28.6]} 40. Kxg3 {[%clk 0:00:19.7]} 40... Kf6
{[%clk 0:00:29.5]} 41. Kg4 {[%clk 0:00:20]} 41... d4 {[%clk 0:00:30.4]} 42. cxd4
{[%clk 0:00:19.9]} 42... cxd4 {[%clk 0:00:31.3]} 43. Kf3 {[%clk 0:00:20.3]}
43... Kxf5 {[%clk 0:00:32.2]} 44. Kg3 {[%clk 0:00:20.7]} 44... Ke4 {[%clk
0:00:32.6]} 45. f5 {[%clk 0:00:18.8]} 45... d3 {[%clk 0:00:33.5]} 46. Kf2 {[%clk
0:00:18.8]} 46... h5 {[%clk 0:00:31.6]} 47. Ke1 {[%clk 0:00:17.4]} 47... h4
{[%clk 0:00:31.9]} 48. Kd2 {[%clk 0:00:17.6]} 48... h3 {[%clk 0:00:32.4]} 0-1

[Event "*** SCC Grand Prix: Titled Tuesday Blitz"]
[Site "Chess.com"]
[Date "2020.06.09"]
[Round "8"]
[White "vanyakuba"]
[Black "novendrapriasmoro"]
[Result "0-1"]
[WhiteElo "2449"]
[BlackElo "2659"]
[TimeControl "180+1"]
[EndTime "10:36:06 PDT"]
[Termination "novendrapriasmoro won on time"]

1. e4 {[%clk 0:03:00]} 1... c5 {[%clk 0:02:59.6]} 2. c3 {[%clk 0:03:00]} 2...
Nc6 {[%clk 0:02:57.3]} 3. d4 {[%clk 0:02:59.9]} 3... cxd4 {[%clk 0:02:58.2]} 4.
cxd4 {[%clk 0:03:00.8]} 4... Nf6 {[%clk 0:02:53.1]} 5. e5 {[%clk 0:02:55.6]}
5... Nd5 {[%clk 0:02:52.2]} 6. Nf3 {[%clk 0:02:50.3]} 6... d6 {[%clk 0:02:51.4]}
7. Bc4 {[%clk 0:02:50.6]} 7... e6 {[%clk 0:02:39.5]} 8. O-O {[%clk 0:02:48.7]}
8... Be7 {[%clk 0:02:39]} 9. a3 {[%clk 0:02:48.3]} 9... dxe5 {[%clk 0:02:38.2]}
10. dxe5 {[%clk 0:02:46.2]} 10... O-O {[%clk 0:02:38.1]} 11. Qe2 {[%clk
0:02:41.9]} 11... a6 {[%clk 0:02:35]} 12. Qe4 {[%clk 0:02:30.8]} 12... b5 {[%clk
0:02:30.2]} 13. Bd3 {[%clk 0:02:29.5]} 13... g6 {[%clk 0:02:29.8]} 14. Bh6
{[%clk 0:02:29.2]} 14... Re8 {[%clk 0:02:29.7]} 15. Nbd2 {[%clk 0:01:50.5]}
15... Bb7 {[%clk 0:02:23.8]} 16. h4 {[%clk 0:01:50.3]} 16... Qb6 {[%clk
0:02:22.7]} 17. h5 {[%clk 0:01:45.4]} 17... Bf8 {[%clk 0:02:09.6]} 18. Bxf8
{[%clk 0:01:40.5]} 18... Rxf8 {[%clk 0:02:10.5]} 19. Qh4 {[%clk 0:01:06.5]}
19... Kg7 {[%clk 0:01:48.3]} 20. Ne4 {[%clk 0:00:49.8]} 20... Nd4 {[%clk
0:01:40.2]} 21. Nf6 {[%clk 0:00:32.3]} 21... Nxf3+ {[%clk 0:01:20.4]} 22. gxf3
{[%clk 0:00:33.2]} 22... h6 {[%clk 0:00:18.8]} 23. Nxd5 {[%clk 0:00:17.8]} 23...
exd5 {[%clk 0:00:19.7]} 24. Rac1 {[%clk 0:00:09.6]} 24... Rac8 {[%clk
0:00:16.6]} 25. f4 {[%clk 0:00:09.4]} 25... Qe6 {[%clk 0:00:15.9]} 26. Qg3
{[%clk 0:00:07.1]} 26... Kh7 {[%clk 0:00:14.9]} 27. f5 {[%clk 0:00:06.5]} 27...
gxf5 {[%clk 0:00:14.7]} 28. Qf4 {[%clk 0:00:07]} 28... Rg8+ {[%clk 0:00:14.9]}
29. Kh2 {[%clk 0:00:07.1]} 29... Rg5 {[%clk 0:00:15.2]} 30. Rxc8 {[%clk
0:00:05.9]} 30... Bxc8 {[%clk 0:00:16.1]} 31. Rg1 {[%clk 0:00:06]} 31... Rxh5+
{[%clk 0:00:15.9]} 32. Kg2 {[%clk 0:00:05.6]} 32... Rg5+ {[%clk 0:00:16.1]} 33.
Kf1 {[%clk 0:00:05.7]} 33... Rxg1+ {[%clk 0:00:16.2]} 34. Kxg1 {[%clk
0:00:06.6]} 34... Bd7 {[%clk 0:00:16.2]} 35. Qd4 {[%clk 0:00:05.8]} 35... Bc6
{[%clk 0:00:15.4]} 36. f4 {[%clk 0:00:05.8]} 36... Bd7 {[%clk 0:00:15.1]} 37.
Qa7 {[%clk 0:00:05.2]} 37... Qg6+ {[%clk 0:00:14.7]} 38. Kf2 {[%clk 0:00:05.1]}
38... Be6 {[%clk 0:00:15.6]} 39. Qd4 {[%clk 0:00:02.8]} 39... Qg4 {[%clk
0:00:15.4]} 40. Be2 {[%clk 0:00:02.1]} 40... Qh3 {[%clk 0:00:15.2]} 41. b4
{[%clk 0:00:01.6]} 41... h5 {[%clk 0:00:15.4]} 42. Qc5 {[%clk 0:00:01.7]} 42...
h4 {[%clk 0:00:15.4]} 0-1